Cogmind - Beta 14 @@@ ROGUE MODE // 2024.09.22 @ 13:57:50 Player: puppuppit Result: Destroyed self with Grenade Launcher Performance ------------- Evolutions (0) 0 Regions Visited (2) 400 Robots Destroyed (26) 130 Value Destroyed (332) 332 Prototype IDs (6) 120 Alien Tech Used (0) 0 Bonus (4) 4 TOTAL SCORE: 986 Bonus ------- High Alert Combat Kills 4 Cogmind --------- Core Integrity 0/250 Matter 256/300 Energy 74/100 System Corruption 0% Temperature Cool (0) Movement Flying (117) Ox1 Location -10/Mines Parts ------- > --- POWER (1) -------- (None) > --- PROPULSION (2) --- Flight Unit Flight Unit > --- UTILITY (2) ------ Small Storage Unit Propulsion Shielding > --- WEAPON (2) ------- Backup Laser I Grenade Launcher > --- INVENTORY (8) ---- Backup Power I Wheel Wheel Flight Unit Large Matter Pod (150) Large Matter Pod (150) Improved Terrain Scanner Small Laser Peak State ------------ > --- POWER ------------ Light Ion Engine > --- PROPULSION ------- Wheel Wheel > --- UTILITY ---------- Small Storage Unit Improved Terrain Scanner > --- WEAPON ----------- EM Pulse Gun Assault Rifle > --- INVENTORY -------- Light Ion Engine Wheel Wheel Wheel Compact Wheel Large Matter Pod Large Matter Pod Improved Terrain Scanner [Rating: 10] Favorites ----------- Power Light Ion Engine Engine Light Ion Engine Propulsion Wheel Wheel Wheel Flight Unit Flight Unit Utility Small Storage Unit Device Improved Terrain Scanner Storage Small Storage Unit Protection Propulsion Shielding Weapon Assault Rifle Energy Gun EM Pulse Gun Ballistic Gun Assault Rifle Launcher Grenade Launcher Build | -11 -10 -10 ------- Run | Yrd Mat Min Slots Evolved . | . . . Power . | . . . Propulsion . | . . . Utility . | . . . Weapon . | . . . Parts Attached 22 | 8 13 1 Power 2 | 1 1 . Engine 2 | 1 1 . Core . | . . . Reactor . | . . . Propulsion 12 | 3 9 . Treads . | . . . Leg . | . . . Wheel 10 | 3 7 . Hover . | . . . Flight 2 | . 2 . Utility 4 | 2 2 . Device 1 | 1 . . Storage 2 | 1 1 . Processor . | . . . Hackware . | . . . Protection 1 | . 1 . Artifact . | . . . Weapon 4 | 2 1 1 Energy Gun 2 | 1 1 . Energy Cannon . | . . . Ballistic Gun 1 | 1 . . Ballistic Cannon . | . . . Launcher 1 | . . 1 Special Weapon . | . . . Impact Weapon . | . . . Slashing Weapon . | . . . Piercing Weapon . | . . . Special Melee Weapon . | . . . Unidentified Prototypes . | . . . Parts Lost 5 | . 5 . Power 1 | . 1 . Propulsion 2 | . 2 . Utility . | . . . Weapon 2 | . 2 . Highest Loss Streak 3 | . 3 . To Critical Strikes . | . . . Average Slot Usage (%) 92 | . 94 85 Engine 8 | . 10 . Wheel 17 | . 22 . Flight 10 | . 5 28 Device 9 | . 12 . Storage 14 | . 14 14 Protection 4 | . 1 14 Energy Gun 17 | . 15 28 Ballistic Gun 8 | . 10 . Peak Build Rating 10 | 9 10 7 Average Rating 8 | 7 9 7 On Entrance 5 | . 9 7 Naked Turns . | . . . Heaviest Build 13 | 13 13 8 Greatest Support 26 | 26 20 8 Greatest Overweight (x) . | . . . Average Overweight (x) . | . . . Largest Inventory Capacity 8 | 8 8 8 Average Capacity 7 | 7 8 8 Most Carried 8 | 6 8 8 Average Carried 6 | . 7 8 Final Capacity 8 | 8 8 8 Final Carried 8 | 6 8 8 Class Distribution -------------------- 74% | Mutant 25% | Scavenger-Mutant Dominant Class ---------------- Mutant | -10/Materials Mutant | -10/Mines Resources | -11 -10 -10 ----------- Run | Yrd Mat Min Matter Collected 811 | 294 477 40 Remotely . | . . . Salvage Created 786 | 175 611 . Parts 69 | 19 50 . Haulers Intercepted 1 | . 1 . Recyclers Shooed 1 | 1 . . Parts Field Recycled . | . . . Retrieved Matter . | . . . Parts Self-Destructed . | . . . Prevented . | . . . Kills | -11 -10 -10 ------- Run | Yrd Mat Min Combat Hostiles Destroyed 12 | . 12 . Guns 10 | . 10 . AOE 2 | . 2 . Classes Destroyed 7 | 2 5 . Worker 5 | . 5 . Builder 2 | . 2 . Tunneler 5 | 5 . . Hauler 1 | . 1 . Recycler 1 | 1 . . Swarmer 6 | . 6 . Grunt 6 | . 6 . Best Kill Streak 9 | 6 9 . Combat Bots Only 6 | . 6 . Max Kills in Single Turn 2 | 1 2 . Gunslinging . | . . . Exploded 2 | . 2 . Melee . | . . . Uniques/NPCs Destroyed . | . . . Combat | -11 -10 -10 -------- Run | Yrd Mat Min Hostile Shots Fired 97 | . 94 3 Missed 28 | . 28 . Damage Taken 762 | . 695 67 Core 254 | . 204 50 Absorbed by Shields . | . . . Redirected to Shielding 8 | . 6 2 Core Remaining (%) 100 | 100 . . Volleys Fired 54 | 12 41 1 Largest 2 | 2 2 1 Hottest 80 | 60 80 30 Shots Fired 106 | 24 81 1 Gun 105 | 24 81 . Cannon . | . . . Launcher 1 | . . 1 Special . | . . . Kinetic 50 | 12 38 . Thermal 2 | . 2 . Explosive 1 | . . 1 Electromagnetic 53 | 12 41 . Robot Hit Streak 7 | 2 7 . Robot Miss Streak 5 | 2 5 . Penetration Max . | . . . Secondary Targets . | . . . Shots Hit Robots 51 | 9 42 . Core Hits 31 | 6 25 . Critical Kills 1 | . 1 . Critical Parts Destroyed . | . . . Critical Strikes 1 | . 1 . Destroy 1 | . 1 . Melee Attacks . | . . . Impact . | . . . Slashing . | . . . Piercing . | . . . Sneak Attacks . | . . . Combat Hostiles . | . . . Follow-up Attacks . | . . . Damage Inflicted 742 | 132 610 . Guns 688 | 132 556 . Cannons . | . . . Explosions 54 | . 54 . Melee . | . . . Ramming . | . . . Kinetic 250 | 33 217 . Thermal 66 | . 66 . Explosive . | . . . Electromagnetic 426 | 99 327 . Impact . | . . . Slashing . | . . . Piercing . | . . . Highest Corruption . | . . . Average Corruption . | . . . Corruption Purged . | . . . Corruption Blocked . | . . . Overload Shots . | . . . Overflow Damage 10 | . 10 . Projectiles . | . . . Explosions 10 | . 10 . Melee . | . . . Knockbacks . | . . . Impact . | . . . Kinetic . | . . . Secondary . | . . . Self-Inflicted Damage 83 | . 40 43 Shots 2 | . 1 1 Rammed . | . . . Targets Rammed . | . . . Kicked . | . . . Crushed . | . . . Highest Temperature 54 | . 54 . Average Temperature 14 | . 14 . Received Heat Transfer 261 | . 261 . Siege Activations . | . . . Robots Corrupted . | . . . Combat Hostiles . | . . . Parts Fried . | . . . Impact Corruptions . | . . . Robots Melted . | . . . Combat Hostiles . | . . . Parts Melted . | . . . Heat Transferred 75 | . 75 . Parts Sabotaged . | . . . Parts Stolen . | . . . Parts Stripped . | . . . Power Chain Reactions 1 | . 1 . Alert | -11 -10 -10 ------- Run | Yrd Mat Min Peak Influence 549 | 30 549 106 Initial 106 | . 19 106 Average 196 | 13 264 106 Maximum Alert Level 2 | . 2 . Low Security (%) 55 | 100 31 100 Level 1 31 | . 48 . Level 2 12 | . 19 . Level 3 . | . . . Level 4 . | . . . Level 5 . | . . . High Security . | . . . Max Security . | . . . Squads Dispatched 5 | . 5 . Investigation 5 | . 5 . Extermination . | . . . Reinforcement . | . . . Assault . | . . . Garrison . | . . . Intercept . | . . . Searches Triggered . | . . . Construction Impeded . | . . . Haulers Reinforced . | . . . Active Scanning Responses . | . . . Cargo Convoy Interrupts . | . . . Stealth | -11 -10 -10 --------- Run | Yrd Mat Min Distress Signals . | . . . Communications Jammed . | . . . Distress Signals . | . . . Times Spotted 33 | . 30 3 Peak Tracking Total 6 | . 6 3 Tactical Retreats 6 | . 6 . Traps | -11 -10 -10 ------- Run | Yrd Mat Min Traps Triggered 2 | . 2 . Indirectly . | . . . Trap Hack Attempts . | . . . Triggered . | . . . Disarmed . | . . . Reprogrammed 10 | . 10 . Reused 1 | . 1 . Traps Extracted . | . . . Installed . | . . . Triggered 1 | . 1 . Machines | -11 -10 -10 ---------- Run | Yrd Mat Min Machines Disabled 1 | . 1 . Max in Single Turn 1 | . 1 . Machines Repaired . | . . . Machines Dismantled . | . . . Machines Sabotaged . | . . . Overloaded Fab Kills . | . . . Hacking | -11 -10 -10 --------- Run | Yrd Mat Min Machines Accessed 8 | . 8 . Terminals 7 | . 7 . Fabricators . | . . . Repair Stations 1 | . 1 . Recycling Units . | . . . Scanalyzers . | . . . Garrison Access . | . . . Total Hacks 32 | . 32 . Successful 14 | . 14 . Failed 17 | . 17 . Catastrophic 4 | . 4 . Database Lockouts 1 | . 1 . Manual 8 | . 8 . Terminals 29 | . 29 . Fabricators . | . . . Repair Stations 3 | . 3 . Recycling Units . | . . . Scanalyzers . | . . . Garrison Access . | . . . Terminal Hacks 13 | . 13 . Robot Analysis 1 | . 1 . Prototype ID Bank 4 | . 4 . Branch Access Points 1 | . 1 . Terminal Index 1 | . 1 . Unreport Threat 2 | . 2 . Reprogram Traps 2 | . 2 . Recall Investigation 1 | . 1 . Zone Layout 1 | . 1 . Fabricator Hacks . | . . . Repair Station Hacks 1 | . 1 . Refit 1 | . 1 . Recycling Unit Hacks . | . . . Scanalyzer . | . . . Garrison Access Hacks . | . . . Unauthorized Hacks . | . . . Terminals . | . . . Fabricators . | . . . Repair Stations . | . . . Recycling Units . | . . . Scanalyzers . | . . . Garrison Access . | . . . Data Cores Recovered . | . . . Used . | . . . Hacking Detections 8 | . 8 . Full Trace Events 5 | . 5 . Feedback Events . | . . . Feedback Blocked . | . . . Robot Schematics Acquired . | . . . Robots Built . | . . . Authchips . | . . . Time . | . . . Total Robot Build Rating . | . . . Part Schematics Acquired . | . . . Parts Built . | . . . Authchips . | . . . Time . | . . . Total Part Build Rating . | . . . Parts Repaired . | . . . Time . | . . . Parts Recycled . | . . . Recycled Matter . | . . . Retrieved Matter . | . . . Retrieved Components . | . . . Parts Scanalyzed . | . . . Part Schematics Acquired . | . . . Parts Damaged . | . . . Bothacking | -11 -10 -10 ------------ Run | Yrd Mat Min Used RIF Installer . | . . . Robots Hacked . | . . . Non-combat . | . . . Combat . | . . . Robot Hacks Applied . | . . . Relay Couplers Released . | . . . Fabnet Peak Effective % . | . . . Robots Rewired . | . . . Allies Hacked . | . . . Hacks Repelled . | . . . Allies | -11 -10 -10 -------- Run | Yrd Mat Min Total Allies . | . . . Largest Group . | . . . Highest-Rated Group . | . . . Highest-Rated Ally . | . . . Total Orders . | . . . Ally Attacks . | . . . Total Damage . | . . . Kills . | . . . Allies Corrupted . | . . . Allies Melted . | . . . Intel | -11 -10 -10 ------- Run | Yrd Mat Min Robot Analysis Total 1 | . 1 . Derelict Logs Recovered . | . . . Drone Launches . | . . . Drone Recoveries . | . . . Exploration | -11 -10 -10 ------------- Run | Yrd Mat Min Turns Passed 603 | 92 397 114 Spaces Moved 732 | 47 386 299 Core 3 | 3 . . Treads . | . . . Legs . | . . . Wheels 247 | 44 203 . Hover . | . . . Flight 482 | . 183 299 Fastest Speed 37 | 50 37 37 Average Speed 51 | 84 59 37 Slowest Speed 90 | 90 80 37 Overloaded Moves . | . . . Propulsion Burnouts . | . . . Robots Hopped 9 | . 8 1 Cave-ins Triggered . | . . . Exploration Rate (%) 51 | 3 75 77 Regions Visited 2 Branch Regions 1 Pre-discovered Areas . | . . . Known Exits Taken 1 | . 1 . Unknown Exits Taken 1 | 1 . . Scrap Searched 1 | . . 1 Spaces Dug . | . . . Terrain Destroyed 3 | . 3 . Melee . | . . . Projectile . | . . . AOE 3 | . 3 . Terrain Rammed . | . . . Walls Destroyed . | . . . Machines Disabled . | . . . Actions | -11 -10 -10 --------- Run | Yrd Mat Min Total 839 | 71 466 302 Wait 18 | . 18 . Move 713 | 46 370 297 Hop 8 | . 7 1 Pick Up 13 | 5 7 1 Fast Attach 9 | 7 2 . Attach 3 | . 3 . Detach 1 | . 1 . Swap 10 | 1 8 1 Drop 10 | . 9 1 Fire 54 | 12 41 1 Melee . | . . . Ram . | . . . Kick . | . . . Crush . | . . . Escape Stasis . | . . . Rewire . | . . . Trap . | . . . Miscellaneous . | . . . Route ------- -11/Scrapyard -10/Materials (discovered 4 exits: [*Mat] / *Min x2 / [Sub]) -10/Mines (discovered 1 exit: [*Mat]) History --------- Turn | Location | Event 30 | -11/Scrapyard | Discovered new exit (range 14) 93 | -11/Scrapyard | Entered Materials 279 | -10/Materials | Central database locked down 355 | -10/Materials | Identified exit to Mines 366 | -10/Materials | Discovered new exit (range 14) 382 | -10/Materials | Discovered new exit (range 10) 412 | -10/Materials | Core integrity fell below 50% 438 | -10/Materials | Lost 3 parts (1n2w) 489 | -10/Materials | Core integrity fell below 20% 490 | -10/Materials | Entered Mines 589 | -10/Mines | Discovered new exit (range 9) 604 | -10/Mines | Destroyed self with Grenade Launcher Last Messages --------------- >>Prototypes Downloading prototype IDs... Imp. Medium Laser Hvy. Ion Engine >>Alert(Purge) Purged threat record, alert level lowered. 00480_ Dropped Sml. Storage Unit. 00490_ K-01 Serf cleans the Machine. LOCATION=MINES GOAL=ESCAPE 00578_ K-01 Serf collects debris. 00589_ EXIT=FOUND 00593_ Searching scrap... 00593_ Found Aluminum Leg. 00593_ Found Lgt. Treads. 00593_ Found Grenade Launcher. 00593_ Found 40 Matter. 00593_ Acquired 40 matter. 00596_ Dropped Wheel. 00596_ Acquired Grenade Launcher. Map ----- +----------------------------------------------------+ | | | | | | | | | | | | | | | | | | | | | ????????????????????????????? | | ????????????????????????????? | | ????????????????????????????? | | ????????????????????????????? | | ??????????????###???????????? | | ??????????????# ???????????? | | ??????????????# #???????????? | | ??????????????# #???????????? | | ??????????????#=#???????????? | | ??????????????# #???????????? | | ??????????????#=#???????????? | | ???????????####=###?????????? | | ???######### #?????????? | | ???# < #?????????? | | ???# ####### #?????????? | | ???#@#?????# #?????????? | | ?? ????# #?????????? | | ?# ss??# #?????????? | | ?# s #### ###?????????? | | ?# #??# #???????????? | | ?# """ """ #??# ######??????? | | ?# """ """ #??# #??????? | | ?# """ """ ######### #??????? | | ?# ? ## ##??# #??????? | | ?########?## #### #### | | ?????????## | | ?????????# ######### | | ?????????# ##??????????? | | ?????????## """ #??????????? | | ?????????## """ #??????????? | | ?????????# """ ##?????????? | | ?????????# #?????????? | | ?????????## #?????????? | | ??????????## ##?????????? | | ????????#### ##??????????? | | ????????# #???????????? | | ????????## ##??????????? | | ?????????##### ##??####???? | | ????????????## ### ###?? | | ????????????# ##? | +----------------------------------------------------+ Best States ------------- Heat Dissipation 25 Energy Generation 10 Energy Capacity 125 Matter Stores 300 Matter Capacity 300 Sight Range 16 Terrain Scan Range 16 Terrain Scan Density 10 Propulsion Shielding 33 Evasion (%) 62 Item Schematics ----------------- None Robot Schematics ------------------ None Fabricated ------------ Nothing Alien Tech Used ----------------- None Achievements -------------- None Challenges ------------ None Game ------ Seed ExpertCloakingOptics Manual? 0 Play Time 00:09:19 Cumulative 474.5 hours Start 2024.09.22 @ 13:49:21 End 2024.09.22 @ 13:57:50 Sessions 1 Manual Loads 0 Difficulty Rogue Special Mode None Game No. 181 Rogue 181 Adventurer 0 Explorer 0 Win Type - Total 4 Types 0/0/2/2/0/0/0/0/0 Lore% 47 Gallery% 75 Achievement% 66 Wizard Run 0 Options --------- Layout 0 ASCII 0 Keyboard 1 Movement Arrows Keybinds 0 Fullscreen 1 Font 12/Proggy Map View 83x54 Zoom Use 0% Tactical HUD 1 Map Filters NONE Filters NONE Steam 0 RUN: 32f137b4-c8dc-4a56-91cf-087756aa5ee9